bitfinex/quotes_ETHUSD_20220227
["timestamp","ask_amount","ask_price","bid_price","bid_amount"]
[1645940906516,0.531,2726.0,2725.2,1.1534]
[1645940906969,0.1467,2725.9,2724.8,2.8026]
[1645940907166,1.13615616,2725.0,2724.8,2.8026]
[1645940907366,1.13615616,2725.0,2724.6,1.1534]
[1645940907367,1.2342,2725.7,2725.0,0.51805823]
[1645940907572,1.22659665,2725.7,2725.0,0.51805823]
[1645940907770,7.5,2725.1,2724.3,0.25]
[1645940907971,5.0,2724.6,2723.6,13.89477322]
[1645940908167,5.0,2724.6,2723.7,1.55144031]
[1645940908168,15.6607,2724.5,2723.7,1.55144031]
[1645940908370,1.8346,2724.5,2723.6,13.89477322]
[1645940908569,1.3366274,2724.3,2723.7,1.55139928]
[1645940908768,1.6366274,2724.3,2723.7,1.55139928]
[1645940908967,0.3,2724.3,2723.7,1.55139928]
[1645940909170,0.531,2724.7,2723.7,1.55139928]
[1645940909368,0.531,2724.7,2723.9,0.00539622]
[1645940909369,0.3,2724.4,2723.9,0.00539622]
[1645940909572,0.831,2724.7,2723.9,0.00539622]
[1645940909769,0.831,2724.7,2723.7,3.04629622]
[1645940909969,0.831,2724.7,2723.8,1.55140431]
[1645940910171,1.10841097,2724.4,2723.6,15.0141601]
[1645940910469,1.30841097,2724.4,2723.7,1.5514153]
[1645940911311,1.30841097,2724.4,2723.6,13.89477322]
[1645940911911,1.30841097,2724.4,2723.7,1.55146438]
[1645940912513,0.1468,2724.6,2723.7,1.55146438]
[1645940912714,0.1468,2724.6,2723.7,1.46206438]
[1645940912914,0.1468,2724.6,2723.6,13.89477322]
[1645940913312,1.82729665,2724.9,2723.6,13.89477322]
[1645940913512,1.20990014,2724.2,2723.6,13.89477322]
[1645940913712,1.82729665,2724.9,2723.6,13.89477322]
[1645940913912,13.38729665,2724.9,2723.6,13.89477322]
[1645940914112,13.38729665,2724.9,2723.8,0.00538293]
[1645940914343,14.38729665,2724.9,2723.8,0.00538293]
[1645940914544,14.38729665,2724.9,2723.8,0.03765027]
[1645940914749,1.37404555,2724.2,2723.8,0.03765027]
[1645940914946,1.67404555,2724.2,2723.8,0.03765027]
[1645940915147,1.67404555,2724.2,2723.8,0.03226734]
[1645940915344,1.67404555,2724.2,2723.8,0.03765027]
[1645940915749,1.67404555,2724.2,2723.6,13.47332349]
[1645940915951,0.3697,2723.9,2723.6,13.47332349]
[1645940916150,12.1607,2723.8,2723.6,12.65624387]
[1645940916350,13.1607,2723.8,2723.6,12.65624387]
[1645940916554,0.1468,2723.7,2723.0,0.0015937]
[1645940916750,0.1468,2723.7,2722.6,3.5]
[1645940916751,0.531,2723.6,2722.7,0.0015937]
[1645940917150,0.831,2723.6,2722.7,0.0015937]
[1645940917357,1.31256795,2723.5,2722.8,1.3532203]
[1645940917550,0.831,2723.6,2722.8,1.3532203]
[1645940917751,0.831,2723.6,2722.7,0.0015937]
[1645940918798,1.03187095,2723.3,2722.6,1.10077959]
[1645940919000,0.3,2723.3,2723.0,0.00537095]
[1645940919199,0.3,2723.4,2723.0,0.00537095]
[1645940919604,11.26,2723.3,2723.0,0.00537095]
[1645940919801,0.9007,2723.2,2723.0,0.00537095]
[1645940920103,0.9007,2723.2,2722.3,0.00180894]
[1645940920304,12.3076,2723.2,2722.3,0.00180894]
[1645940920498,1.39143723,2722.5,2722.1,0.00180894]
[1645940920704,0.9007,2723.0,2721.9,1.17030182]
[1645940920902,0.3,2722.6,2721.9,1.17030182]
[1645940921305,1.2007,2723.0,2721.9,1.17030182]
[1645940921706,12.4607,2723.0,2721.9,0.00180894]
[1645940921963,12.4607,2723.0,2721.5,9.61534299]
[1645940921964,0.3697,2722.8,2721.7,0.00180894]
[1645940922163,0.531,2722.7,2721.7,0.00180894]
[1645940922364,0.6,2722.8,2721.7,0.00180894]
[1645940922766,0.3,2722.8,2721.7,0.00180894]
[1645940922962,1.44447984,2722.8,2721.7,0.00180894]
[1645940923161,1.14447984,2722.8,2721.7,0.00180894]
[1645940923363,1.44447984,2722.8,2721.7,0.00180894]
[1645940923962,1.44447984,2722.8,2722.1,1.41214507]
[1645940924164,0.3,2722.8,2722.1,1.41214507]
[1645940924363,0.9779,2723.0,2722.1,1.41214507]
[1645940924663,0.9779,2723.0,2722.2,0.00180894]
[1645940925063,0.9779,2723.0,2722.7,1.12592557]
[1645940925275,0.9779,2723.0,2721.8,3.8697]
[1645940925276,0.3,2723.0,2721.8,18.28333476]
[1645940925466,0.3,2723.1,2721.8,8.02333476]
[1645940925706,1.66049234,2723.4,2721.8,7.97333476]
[1645940926105,3.70739234,2723.4,2721.8,4.47333476]
[1645940926309,3.70739234,2723.4,2721.8,3.22680894]
[1645940926310,5.3697,2723.2,2721.8,3.22680894]
[1645940926506,5.3697,2723.2,2721.8,3.50180894]
[1645940926507,0.531,2723.1,2721.8,3.50180894]
[1645940926709,0.1469,2723.0,2721.8,3.50180894]
[1645940927108,0.531,2723.1,2721.8,3.50180894]
[1645940927307,0.531,2723.1,2721.9,0.3697]
[1645940927510,0.00435825,2722.5,2722.3,1.16121458]
[1645940927708,1.2855164,2722.9,2722.5,0.00556568]
[1645940927709,0.3,2722.9,2722.5,0.00556568]
[1645940928109,0.3,2723.3,2722.5,0.00556568]
[1645940928309,0.3,2723.4,2722.5,0.00556568]
[1645940928712,1.18124165,2723.3,2722.5,0.00556568]
[1645940929112,1.48124165,2723.3,2722.5,0.00556568]
[1645940929352,1.85094165,2723.3,2722.5,0.00556568]
[1645940930465,3.5,2723.2,2722.5,0.00556568]
[1645940930660,2.15094165,2723.3,2722.5,0.00556568]
[1645940931060,0.00435825,2723.0,2722.5,0.00556568]
[1645940932059,0.1469,2723.2,2722.5,0.00556568]
[1645940932261,0.00594721,2722.9,2722.5,0.00556568]
[1645940933207,2.8328,2723.6,2722.5,0.00556568]
[1645940933406,2.8328,2723.6,2722.5,0.00737462]
[1645940933612,0.00594724,2722.8,2722.5,0.00737462]
[1645940933806,0.00594724,2722.8,2722.5,0.00556568]
[1645940934506,1.05341265,2723.5,2722.5,0.00556568]
[1645940934705,0.00594727,2722.8,2722.5,0.00737462]
[1645940934906,0.00594727,2722.8,2722.5,0.00556568]
[1645940935713,0.3,2723.5,2722.5,0.00556568]
[1645940935910,0.00594727,2722.8,2722.5,0.00556568]
[1645940936958,1.02378512,2723.3,2722.5,0.00556568]
[1645940937160,0.00594727,2722.8,2722.5,0.00556568]
[1645940937960,0.3,2723.5,2722.5,0.00556568]
[1645940938169,0.1469,2723.6,2722.5,0.00556568]
[1645940938170,1.04616392,2723.0,2722.5,0.00556568]
[1645940938365,0.00594727,2722.8,2722.5,0.00556568]
[1645940939166,1.04616392,2723.0,2722.5,0.00556568]
[1645940939567,0.00594727,2722.8,2722.5,0.00556568]
[1645940940365,0.7013598,2723.6,2722.5,0.00556568]
[1645940940821,0.00594727,2722.8,2722.5,0.00556568]
[1645940941615,1.53629402,2723.2,2722.5,0.00556568]
[1645940941816,0.00594727,2722.8,2722.5,0.00556568]
[1645940942917,1.83629402,2723.2,2722.5,0.00556568]
[1645940943319,0.00594727,2722.8,2722.5,0.00556568]
[1645940944015,1.83629402,2723.2,2722.5,0.00556568]
[1645940944216,0.00594727,2722.8,2722.5,0.00556568]
[1645940945252,0.3,2723.2,2722.5,0.00556568]
[1645940945454,0.00594727,2722.8,2722.5,0.00556568]
[1645940945657,0.00594727,2722.8,2722.5,0.00737462]
[1645940945961,0.00594727,2722.8,2722.5,0.00556568]
[1645940946357,1.8097614,2723.3,2722.5,0.00556568]
[1645940946557,1.8097614,2723.3,2722.5,0.00737462]
[1645940946857,1.8097614,2723.3,2722.5,3.50737462]
[1645940946858,0.00594727,2722.8,2722.5,3.50737462]
[1645940947061,0.00594727,2722.8,2722.5,3.50556568]
[1645940947658,0.5544598,2723.6,2722.5,3.50556568]
[1645940947958,1.05199272,2723.3,2723.0,0.01355648]
[1645940949009,1.0579397,2723.3,2723.0,0.01355648]
[1645940949609,0.00594698,2723.3,2723.0,0.01355648]
[1645940950010,1.2241598,2723.6,2723.0,0.01355648]
[1645940950211,0.00594698,2723.3,2723.0,0.01355648]
[1645940950818,1.20785222,2723.1,2723.0,0.01355648]
[1645940951015,1.50785222,2723.1,2723.0,0.01355648]
[1645940951225,0.3,2723.1,2723.0,0.01355648]
[1645940951716,0.00594704,2723.2,2723.0,0.01355648]
[1645940951957,0.30594704,2723.2,2723.0,0.01355648]
[1645940952160,0.00594704,2723.2,2723.0,0.01355648]
[1645940952357,1.6127771,2723.3,2723.0,0.01355648]
[1645940952557,1.9127771,2723.3,2723.0,0.01355648]
[1645940952756,0.00594701,2723.2,2723.0,0.01355648]
[1645940953558,0.3,2723.2,2723.0,0.01355648]
[1645940953761,0.3,2723.4,2723.0,0.01355648]
[1645940953957,1.38876642,2723.2,2723.0,0.01255792]
[1645940954356,1.68876642,2723.2,2723.0,0.01255792]
[1645940954758,0.1,2723.2,2723.0,0.01255792]
[1645940954959,0.5165,2723.5,2723.0,0.01255792]
[1645940955162,0.00594701,2723.2,2723.0,0.01255792]
[1645940955363,0.6778,2723.1,2723.0,0.01255792]
[1645940955614,2.04549332,2723.1,2723.0,0.01255792]
[1645940955808,13.30549332,2723.1,2723.0,0.01255792]
[1645940956207,11.9297,2722.9,2722.5,0.00556568]
[1645940956411,0.3697,2722.7,2722.5,0.00556568]
[1645940956608,0.9007,2722.6,2722.5,0.00556568]
[1645940956811,1.2007,2722.6,2722.5,0.00556568]
[1645940957808,1.2007,2722.6,2721.6,3.14327462]
[1645940957809,1.3476,2722.6,2721.6,3.14327462]
[1645940958013,1.3476,2722.6,2721.7,1.55251606]
[1645940958609,1.35354446,2722.6,2722.0,0.00530146]
[1645940958810,0.3,2722.2,2722.0,0.00530146]
[1645940959208,1.6376,2722.4,2722.0,0.00530146]
[1645940959464,1.3448,2722.3,2722.0,0.00530146]
[1645940959663,0.3697,2722.1,2721.5,12.18394299]
[1645940959963,1.22509836,2721.8,2721.6,1.55261679]
[1645940960165,1.22509836,2721.8,2721.5,8.86534299]
[1645940960166,1.5653,2721.8,2721.5,8.86534299]
[1645940960365,1.8653,2721.8,2721.5,8.86534299]
[1645940960789,1.8653,2721.8,2721.6,1.55281712]
[1645940960968,1.8653,2721.8,2721.5,8.40594299]
[1645940961169,0.3,2721.8,2721.6,1.55279193]
[1645940961368,0.3,2721.8,2721.7,1.01223363]
[1645940961572,0.1469,2722.0,2721.7,2.56496674]
[1645940961777,0.1469,2722.0,2721.7,1.01223363]
[1645940961969,0.6697,2722.1,2721.7,1.01223363]
[1645940962368,0.6697,2722.1,2721.7,1.01753556]
[1645940963207,0.6697,2722.1,2721.5,8.4077454]
[1645940963410,0.6697,2722.1,2721.6,1.55269407]
[1645940963607,0.6697,2722.1,2721.8,0.00530183]
[1645940963806,0.6697,2722.1,2721.5,8.4077454]
[1645940964008,0.6697,2722.1,2721.4,0.52121052]
[1645940964210,0.6697,2722.1,2721.8,1.318847]
[1645940964211,0.6553,2722.1,2721.8,1.318847]
[1645940964409,0.2856,2722.1,2721.8,1.318847]
[1645940964609,0.3697,2722.6,2721.8,1.318847]
[1645940964810,0.53910295,2722.7,2721.8,1.318847]
[1645940965009,0.53910295,2722.7,2721.9,0.00180241]
[1645940965211,0.53910295,2722.7,2721.9,3.50180241]
[1645940965409,1.2394893,2722.8,2721.9,0.00180241]
[1645940965614,0.1469,2722.8,2721.9,0.00180241]
[1645940966415,0.92659665,2723.2,2721.9,0.00180241]
[1645940966416,0.3697,2723.1,2721.9,0.00180241]
[1645940966612,0.3697,2723.2,2721.9,0.00180241]
[1645940966863,1.34565224,2722.9,2721.8,4.09784941]
[1645940967060,1.34565224,2722.9,2721.9,0.00185613]
[1645940967459,1.71535224,2722.9,2721.9,0.00185613]
[1645940967661,2.01535224,2722.9,2721.9,0.00185613]
[1645940968059,2.16225224,2722.9,2721.9,0.00185613]
[1645940968260,0.00594508,2722.5,2722.1,1.13971409]
[1645940968759,0.00594508,2722.5,2721.9,0.00185613]
[1645940969162,13.42225224,2722.9,2721.9,0.00185613]
[1645940969364,13.97395293,2722.9,2721.9,0.00185613]
[1645940969762,0.0059452,2722.3,2721.9,0.00185613]
[1645940969960,13.97395293,2722.9,2722.3,0.0075315]
[1645940970363,2.71395293,2722.9,2722.3,0.0075315]
[1645940971711,3.71395293,2722.9,2722.3,0.0075315]
[1645940972512,14.97395293,2722.9,2722.3,0.0075315]
[1645940973114,0.00594496,2722.7,2722.3,0.0075315]
[1645940973312,0.1469,2722.6,2722.3,0.0075315]
[1645940974211,0.00594505,2722.6,2722.3,0.0075315]
[1645940974660,0.37564505,2722.6,2722.3,0.0075315]
[1645940975058,0.67564505,2722.6,2722.3,0.0075315]
[1645940975260,0.3697,2722.4,2722.3,0.0075315]
[1645940975662,1.2007,2722.4,2722.3,0.0075315]
[1645940975865,12.4607,2722.4,2722.3,3.15e-05]
[1645940976167,12.4607,2722.4,2721.4,0.5]
[1645940976168,19.36321568,2722.3,2721.4,0.5]
[1645940976366,11.6297,2721.7,2721.3,0.00638047]
[1645940976566,0.91955,2721.5,2720.3,6.8056]
[1645940976866,0.91955,2721.5,2720.3,3.3056]
[1645940976867,0.9779,2721.4,2720.3,3.3056]
[1645940977170,1.03334812,2721.0,2720.3,3.3056]
[1645940977365,0.9779,2721.4,2720.3,3.3056]
[1645940977366,0.3,2721.4,2720.4,3.5]
[1645940977767,3.157,2721.6,2720.4,3.5]
[1645940978409,1.07914435,2721.2,2720.6,1.22748993]
[1645940978711,1.37914435,2721.2,2720.3,2.0697]
[1645940978907,1.37914435,2721.2,2720.1,7.98207072]
[1645940979108,1.37914435,2721.2,2720.1,6.98207072]
[1645940979510,1.37914435,2721.2,2720.2,0.00185027]
[1645940979909,1.37914435,2721.2,2720.3,1.33022481]
[1645940980109,1.37914435,2721.2,2720.4,0.00185027]
[1645940980508,1.37914435,2721.2,2720.6,0.00529782]
[1645940981318,1.37914435,2721.2,2720.4,0.00185027]
[1645940981614,1.37914435,2721.2,2720.8,0.00529743]
[1645940981863,1.37914435,2721.2,2720.1,3.14071131]
[1645940982865,1.41010952,2720.7,2720.1,4.50394152]
[1645940983067,1.4365,2721.2,2720.1,3.14071131]
[1645940983266,1.8062,2721.2,2720.1,3.14071131]
[1645940983465,13.0662,2721.2,2720.1,3.14071131]
[1645940983666,13.2131,2721.2,2720.1,3.14071131]
[1645940983866,13.2131,2721.2,2720.2,1.55324153]
[1645940984369,1.9531,2721.2,2720.2,1.55324153]
[1645940984969,1.9531,2721.2,2720.2,1.09364153]
[1645940985271,1.9531,2721.2,2720.3,0.00158555]
[1645940985470,12.1607,2721.1,2720.3,0.00158555]
[1645940985712,1.06657,2721.0,2720.3,0.00158555]
[1645940985913,0.531,2720.9,2720.3,0.00158555]
[1645940986112,0.1469,2720.8,2720.2,0.00184095]
[1645940986314,1.24093385,2720.1,2720.0,0.00184095]
[1645940986516,0.531,2720.5,2720.3,0.00523217]
[1645940987317,0.531,2720.5,2719.6,0.00184095]
[1645940987615,0.531,2720.5,2719.6,0.02277486]
[1645940987813,4.0,2720.4,2719.5,3.86827486]
[1645940988013,0.531,2720.5,2719.5,3.86827486]
[1645940988213,0.531,2720.5,2719.5,7.38096475]
[1645940989214,1.05376708,2720.3,2719.5,7.38096475]
[1645940989962,0.3,2720.4,2720.3,0.60328526]
[1645940990358,2.24036242,2720.5,2720.3,0.60328526]
[1645940990359,3.24036242,2720.5,2720.3,0.60328526]
[1645940991163,2.24631129,2720.5,2720.3,0.60328526]
[1645940991361,1.90664887,2720.5,2720.3,0.60328526]
[1645940991564,0.00594887,2720.5,2720.3,0.60328526]
[1645940992163,0.3,2720.9,2720.3,0.60328526]
[1645940992364,0.00594887,2720.5,2720.3,0.60328526]
[1645940992568,0.00594887,2720.5,2720.3,2.03177623]
[1645940993819,0.00594887,2720.5,2720.3,0.60328526]
[1645940994619,0.9779,2720.9,2720.3,0.60328526]
[1645940994818,0.00594887,2720.5,2720.3,0.60328526]
[1645940995826,1.53641649,2720.9,2720.3,0.60328526]
[1645940996025,0.00594887,2720.5,2720.3,0.60328526]
[1645940997074,0.9779,2720.9,2720.3,0.60328526]
[1645940997272,0.00594887,2720.5,2720.3,0.60328526]
[1645940998275,0.9779,2720.9,2720.3,0.60328526]
[1645940998475,0.00594887,2720.5,2720.3,0.60328526]
[1645940999475,0.1469,2720.7,2720.3,0.60328526]
[1645940999675,0.00594887,2720.5,2720.3,0.60328526]
[1645941000716,0.531,2720.6,2720.3,0.60328526]
[1645941000917,0.15284887,2720.5,2720.3,0.60328526]
[1645941001717,0.00594887,2720.5,2720.3,0.60328526]
[1645941001917,0.1469,2720.7,2720.3,0.60328526]
[1645941001918,1.44951267,2720.7,2720.3,0.60328526]
[1645941002117,0.00571639,2720.5,2720.3,0.60328526]
[1645941003124,0.531,2720.6,2720.3,0.60328526]
[1645941003322,0.00571639,2720.5,2720.3,0.60328526]
[1645941004357,0.531,2720.6,2720.3,0.60328526]
[1645941004358,11.22,2720.6,2720.3,0.60328526]
[1645941004556,0.53671639,2720.5,2720.3,0.60328526]
[1645941004758,11.75671639,2720.5,2720.3,0.60328526]
[1645941004956,0.53671639,2720.5,2720.3,0.60328526]
[1645941005155,1.53671639,2720.5,2720.3,0.60328526]
[1645941005556,0.531,2720.5,2720.3,0.60328526]
[1645941005764,0.68360424,2720.5,2720.3,0.60328526]
[1645941006359,0.53670424,2720.5,2720.3,0.60328526]
[1645941006863,0.6779,2720.5,2720.3,0.60328526]
[1645941007063,0.68360424,2720.5,2720.3,0.60328526]
[1645941007461,0.53670424,2720.5,2720.3,0.60328526]
[1645941007861,0.531,2720.5,2720.3,0.60328526]
[1645941008112,0.53670424,2720.5,2720.3,0.60328526]
[1645941009116,0.531,2720.5,2720.3,0.60328526]
[1645941009317,0.53670601,2720.5,2720.3,0.60328526]
[1645941010317,0.531,2720.5,2720.3,0.60328526]
[1645941010517,0.53670601,2720.5,2720.3,0.60328526]
[1645941011520,0.531,2720.5,2720.3,0.60328526]
[1645941011722,0.53670601,2720.5,2720.3,0.60328526]
[1645941012464,0.53670601,2720.5,2720.3,0.60134426]
[1645941012664,0.531,2720.5,2720.3,0.60134426]
[1645941012866,0.53670575,2720.5,2720.3,0.60134426]
[1645941013267,11.75670575,2720.5,2720.3,0.60134426]
[1645941013665,1.53670575,2720.5,2720.3,0.60134426]
[1645941013867,1.531,2720.5,2720.3,0.60134426]
[1645941014067,0.531,2720.5,2720.3,0.60134426]
[1645941014268,0.53670575,2720.5,2720.3,0.60134426]
[1645941014670,0.00570575,2720.5,2720.3,0.60134426]
[1645941015072,0.55592515,2720.9,2720.3,0.60134426]
[1645941015468,0.00570575,2720.5,2720.3,0.60134426]
[1645941015735,0.00570575,2720.5,2720.4,1.24649053]
[1645941016146,0.55592515,2720.9,2720.5,0.0068875]
[1645941016538,0.00570576,2720.6,2720.5,0.0068875]
[1645941017337,0.53670576,2720.6,2720.5,0.0068875]
[1645941017539,0.531,2720.6,2720.5,0.0068875]
[1645941017936,1.75859563,2720.6,2720.5,0.0068875]
[1645941018337,0.531,2720.6,2720.5,0.0068875]
[1645941021085,1.67825437,2720.6,2720.5,0.0068875]
[1645941021291,0.30594879,2720.7,2720.5,0.0068875]
[1645941021685,0.00594879,2720.7,2720.5,0.0068875]
[1645941022385,1.08692515,2720.9,2720.5,0.0068875]
[1645941022588,0.00594876,2720.7,2720.5,0.0068875]
[1645941022789,0.00594876,2720.7,2720.6,1.55336688]
[1645941023514,1.08692515,2720.9,2720.6,1.55336688]
[1645941023818,0.00594873,2720.8,2720.6,1.55336688]
[1645941024414,0.00594873,2720.8,2720.7,1.15075937]
[1645941024814,1.60371894,2721.5,2720.7,2.70412625]
[1645941025014,0.00594867,2720.9,2720.8,1.55336688]
[1645941025214,0.00594867,2720.9,2720.8,1.55519957]
[1645941025413,0.00594867,2720.9,2720.8,1.55336688]
[1645941026021,1.60371894,2721.5,2720.8,1.55336688]
[1645941026221,1.60371894,2721.5,2720.5,3.05612019]
[1645941026222,0.00594861,2721.0,2720.9,1.55336688]
[1645941026621,0.00594861,2721.0,2720.6,1.55336688]
[1645941027070,1.45681894,2721.5,2720.6,1.55336688]
[1645941027270,1.94687873,2721.5,2720.7,0.00183269]
[1645941027470,0.00594864,2720.9,2720.7,0.00183269]
[1645941027673,0.00594864,2720.9,2720.6,1.55336688]
[1645941028473,0.00594867,2720.9,2720.6,2.79645855]
[1645941028673,0.00594867,2720.9,2720.7,1.55336688]
[1645941029272,0.00594867,2720.9,2720.7,1.55236688]
[1645941029474,1.21957,2721.4,2720.7,1.55236688]
[1645941029675,0.3,2721.4,2720.7,1.55236688]
[1645941029876,0.00594864,2720.9,2720.7,1.09246688]
[1645941030732,3.5,2721.4,2720.7,1.09246688]
[1645941030933,0.6779,2721.5,2720.7,1.09246688]
[1645941031130,0.00594864,2720.9,2720.7,1.09246688]
[1645941031935,15.3979,2721.5,2720.7,1.09246688]
[1645941032136,0.00594864,2720.9,2720.6,0.00183269]
[1645941032436,0.00594864,2720.9,2720.5,3.0542875]
[1645941033035,17.32371894,2721.5,2720.5,2.5943875]
[1645941033234,17.32371894,2721.5,2720.6,0.00183269]
[1645941033436,0.0059487,2720.8,2720.6,0.00183269]
[1645941033737,0.0059487,2720.8,2720.5,3.87039405]
[1645941034370,0.531,2721.3,2720.5,3.87039405]
[1645941034371,0.531,2721.3,2720.5,2.5943875]
[1645941034563,0.00594873,2720.8,2720.5,2.59622019]
[1645941034763,0.00594873,2720.8,2720.5,2.5943875]
[1645941035567,12.30401061,2721.0,2720.4,1.2073]
[1645941035768,0.00594873,2720.8,2720.4,1.2073]
[1645941035966,0.00594873,2720.8,2720.4,0.7474]
[1645941036165,0.00594873,2720.8,2720.3,0.60317695]
[1645941036568,1.60360873,2720.8,2720.3,0.60317695]
[1645941036768,1.59766,2720.8,2720.3,0.60317695]
[1645941037070,0.00594879,2720.7,2720.3,0.60317695]
[1645941037266,0.531,2720.6,2720.3,0.60134426]
[1645941037466,0.831,2720.6,2720.3,0.60134426]
[1645941037666,0.3,2720.6,2720.3,0.60134426]
[1645941038311,0.00594873,2720.6,2720.3,0.60134426]
[1645941038510,0.30594873,2720.6,2720.3,0.60134426]
[1645941038911,0.30594873,2720.6,2720.3,0.14144426]
[1645941039114,0.3,2720.6,2720.3,0.14144426]
[1645941039514,0.00585136,2720.6,2720.3,0.14144426]
[1645941039917,0.1469,2721.2,2720.8,0.00683477]
[1645941040117,0.531,2721.7,2720.8,0.00683477]
[1645941040118,0.92581894,2721.7,2720.8,0.00683477]
[1645941040314,1.84708248,2722.0,2720.8,0.00683477]
[1645941040315,0.92581894,2721.8,2720.8,0.00683477]
[1645941040515,0.92581894,2722.0,2720.8,0.00683477]
[1645941040716,1.07271894,2722.0,2720.8,0.00683477]
[1645941040915,1.11406397,2721.7,2721.0,1.019615]
[1645941041518,1.07271894,2722.0,2721.0,1.019615]
[1645941041717,1.37271894,2722.0,2721.1,3.5]
[1645941041967,0.00439079,2721.5,2721.1,3.5]
[1645941042764,0.1469,2722.0,2721.1,3.5]
[1645941043365,1.6948,2722.1,2721.1,3.5]
[1645941043965,1.40334649,2721.9,2721.1,3.5]
[1645941044167,1.40334649,2721.9,2721.0,1.019615]
[1645941044366,1.70334649,2721.9,2721.0,1.019615]
[1645941045167,1.85024649,2721.9,2721.0,1.019615]
[1645941046614,0.00594384,2721.6,2721.0,1.019615]
[1645941047618,1.85024649,2721.9,2721.0,1.019615]
[1645941047817,0.00594392,2721.4,2721.0,1.019615]
[1645941048820,1.85024649,2721.9,2721.0,1.019615]
[1645941049017,0.00594398,2721.3,2721.0,1.019615]
[1645941049855,0.00594398,2721.3,2721.1,1.55312878]
[1645941050054,1.70334649,2721.9,2721.1,1.55312878]
[1645941050258,0.00594401,2721.3,2720.9,3.5]
[1645941050454,0.00594401,2721.3,2721.0,1.55312466]
[1645941050661,0.00594401,2721.3,2721.1,1.55312466]
[1645941050861,0.00594401,2721.3,2720.8,1.22063477]
[1645941051063,0.00594401,2721.3,2721.0,1.0916221]
[1645941051259,1.70334649,2721.9,2721.0,1.0916221]
[1645941051260,0.1469,2721.8,2721.0,1.0916221]
[1645941051661,0.00526622,2721.2,2721.1,1.55315386]
[1645941052062,0.00526622,2721.2,2720.8,1.22063477]
[1645941052262,0.00526622,2721.2,2720.9,1.55319494]
[1645941052462,0.1469,2721.8,2720.9,1.55319494]
[1645941052869,0.00526624,2721.1,2720.9,1.55319494]
[1645941053808,0.1469,2721.8,2720.9,5.05319494]
[1645941054009,0.00526624,2721.1,2721.0,1.55319494]
[1645941054208,0.00526624,2721.1,2721.0,5.05319494]
[1645941054611,6.624e-05,2721.1,2721.0,21.27319485]
[1645941054812,0.92581894,2722.9,2721.2,11.22]
[1645941055115,0.92581894,2722.9,2722.1,0.2467]
[1645941055116,1.18720559,2722.9,2722.1,0.2467]
[1645941055913,0.1469,2723.0,2722.1,0.2467]
[1645941056114,0.1469,2723.0,2722.0,3.5]
[1645941057175,1.30955339,2722.8,2722.1,1.32903481]
[1645941057375,1.30955339,2722.8,2721.9,0.00415161]
[1645941058876,1.60955339,2722.8,2721.9,0.00415161]
[1645941059080,1.60522794,2722.8,2721.9,0.00415161]
[1645941059482,1.75212794,2722.8,2721.9,0.00415161]
[1645941059882,0.00580015,2722.5,2721.9,0.00415161]
[1645941060920,0.44257455,2722.8,2721.9,0.00415161]
[1645941061113,0.0054072,2722.3,2721.9,0.00415161]
[1645941062112,0.59567455,2722.8,2721.9,0.00415161]
[1645941062313,0.00540726,2722.2,2721.9,0.00415161]
[1645941063113,0.00540726,2722.2,2722.0,1.02606889]
[1645941063313,1.22465409,2722.7,2722.0,1.02606889]
[1645941063518,0.00528608,2722.2,2721.9,0.00415161]
[1645941064358,1.22465409,2722.7,2721.9,0.00415161]
[1645941064760,1.22465409,2722.7,2721.9,1.18290508]
[1645941064761,0.00528608,2722.2,2721.9,1.18290508]
[1645941064959,0.00528608,2722.2,2721.9,0.00415161]
[1645941065667,1.22465409,2722.7,2721.9,0.00415161]
[1645941065863,0.00531659,2722.2,2721.9,0.00415161]
[1645941066467,0.00531659,2722.2,2721.9,11.75515161]
[1645941066672,1.59407269,2723.8,2722.2,0.00621307]
[1645941066673,0.92581894,2723.3,2722.2,0.00621307]
[1645941066966,0.92581894,2723.4,2722.3,0.1469]
[1645941067163,0.1469,2723.8,2722.3,3.6469]
[1645941067164,0.92581894,2723.5,2722.3,3.6469]
[1645941067365,0.92581894,2723.5,2722.9,1.04249904]
[1645941067566,0.92581894,2723.5,2722.5,3.5]
[1645941068815,0.3697,2723.4,2722.5,3.5]
[1645941069114,0.92581894,2723.3,2722.4,3.3072]
[1645941069414,0.4469,2723.3,2722.4,3.3072]
[1645941069617,0.00401277,2723.1,2722.4,3.3072]
[1645941070414,0.6697,2723.4,2722.4,3.3072]
[1645941070617,1.19340761,2723.1,2722.4,4.5525207]
[1645941070824,0.00557779,2722.9,2722.4,4.5525207]
[1645941071022,0.00557779,2722.9,2722.4,3.3072]
[1645941071720,1.19340761,2723.1,2722.4,3.3072]
[1645941071969,0.00557785,2722.8,2722.4,3.3072]
[1645941072165,0.00557785,2722.8,2722.4,4.45721021]
[1645941072970,0.3,2723.4,2722.4,4.45721021]
[1645941073167,0.92581894,2723.5,2722.4,4.45721021]
[1645941073168,0.00556573,2722.7,2722.4,4.45721021]
[1645941074068,1.4352653,2723.2,2722.4,4.45721021]
[1645941074269,0.00399664,2722.7,2722.4,3.3072]
[1645941075271,1.7352653,2723.2,2722.4,3.3072]
[1645941075717,0.00556344,2722.7,2722.4,3.3072]
[1645941076521,1.7352653,2723.2,2722.4,3.3072]
[1645941076719,1.42016237,2722.7,2722.4,3.3072]
[1645941077517,1.42016237,2722.7,2722.2,0.00621307]
[1645941077725,2.0841941,2722.7,2722.2,0.00621307]
[1645941077920,0.3697,2722.5,2722.2,0.00621307]
[1645941078122,0.531,2722.4,2722.2,0.00621307]
[1645941079220,0.53666841,2722.4,2722.2,0.00621307]
[1645941080061,0.531,2722.4,2722.2,0.00621307]
[1645941080360,0.53655737,2722.4,2722.2,0.00621307]
[1645941080561,0.98345737,2722.4,2722.2,0.00621307]
[1645941081366,0.9779,2722.4,2722.2,0.00621307]
[1645941081563,0.98345737,2722.4,2722.2,0.00621307]
[1645941082264,0.3697,2722.3,2722.2,0.00621307]
[1645941082466,1.82651894,2722.3,2722.2,0.00621307]
[1645941083714,0.9007,2722.3,2722.2,0.00621307]
[1645941083918,1.82585908,2722.3,2722.2,0.00621307]
[1645941084319,0.9007,2722.3,2722.2,0.00621307]
[1645941085620,0.60557093,2722.4,2722.2,0.00621307]
[1645941085823,0.30557093,2722.4,2722.2,0.00621307]
[1645941086222,0.3,2722.5,2722.2,0.00621307]
[1645941086422,0.0055709,2722.4,2722.2,0.00621307]
[1645941086623,0.3752709,2722.4,2722.2,0.00621307]
[1645941087073,0.6752709,2722.4,2722.2,0.00621307]
[1645941087273,0.6697,2722.4,2722.2,0.00621307]
[1645941087673,0.67526394,2722.4,2722.2,0.00621307]